[Event "MCR rapid mládeže 2023 U16"]
[Site "Harachov, Czech Republic"]
[Date "2023.09.09"]
[Round "4.22"]
[White "Chernyy, Andrey"]
[Black "Tejnor, Martin"]
[Result "0-1"]
[TimeControl "20min+5s/move"]
[WhiteElo "1582"]
[BlackElo "1434"]

1. e4 {[%clk 00:20:07]} {[%emt 00:00:02]} c5 {[%clk 00:20:09]} {[%emt
00:00:01]} 2. Nf3 {[%clk 00:20:10]} {[%emt 00:00:02]} d6 {[%clk 00:20:13]}
{[%emt 00:00:02]} 3. Nc3 {[%clk 00:20:13]} {[%emt 00:00:02]} Nc6 {[%clk
00:20:12]} {[%emt 00:00:05]} 4. Bb5 {[%clk 00:20:14]} {[%emt 00:00:04]} Bd7
{[%clk 00:20:05]} {[%emt 00:00:13]} 5. Bxc6 {[%clk 00:19:45]} {[%emt 00:00:34]}
bxc6 {[%clk 00:20:04]} {[%emt 00:00:06]} 6. d4 {[%clk 00:19:16]} {[%emt
00:00:33]} cxd4 {[%clk 00:20:04]} {[%emt 00:00:06]} 7. Qxd4 {[%clk 00:19:07]}
{[%emt 00:00:13]} e5 {[%clk 00:19:02]} {[%emt 00:01:07]} 8. Qd3 {[%clk
00:18:43]} {[%emt 00:00:29]} Be7 {[%clk 00:18:53]} {[%emt 00:00:14]} 9. h3
{[%clk 00:18:20]} {[%emt 00:00:28]} h6 {[%clk 00:18:55]} {[%emt 00:00:03]} 10.
b3 {[%clk 00:17:36]} {[%emt 00:00:49]} Nf6 {[%clk 00:18:55]} {[%emt 00:00:05]}
11. O-O {[%clk 00:17:10]} {[%emt 00:00:30]} O-O {[%clk 00:18:57]} {[%emt
00:00:04]} 12. a4 {[%clk 00:16:27]} {[%emt 00:00:48]} Qc7 {[%clk 00:18:06]}
{[%emt 00:00:56]} 13. Ba3 {[%clk 00:16:14]} {[%emt 00:00:18]} Be6 {[%clk
00:17:54]} {[%emt 00:00:17]} 14. Rad1 {[%clk 00:15:40]} {[%emt 00:00:39]} Rfd8
{[%clk 00:17:49]} {[%emt 00:00:10]} 15. Qe2 {[%clk 00:15:08]} {[%emt 00:00:37]}
Rab8 {[%clk 00:16:48]} {[%emt 00:01:06]} 16. Rd3 {[%clk 00:13:52]} {[%emt
00:01:21]} Rd7 {[%clk 00:14:14]} {[%emt 00:02:40]} 17. Re1 {[%clk 00:11:08]}
{[%emt 00:02:48]} Nh5 {[%clk 00:13:59]} {[%emt 00:00:20]} 18. Bc1 {[%clk
00:09:50]} {[%emt 00:01:23]} Nf6 {[%clk 00:13:35]} {[%emt 00:00:29]} 19. Nh4
{[%clk 00:05:33]} {[%emt 00:04:23]} Rbd8 {[%clk 00:12:45]} {[%emt 00:00:55]} 20.
Nf5 {[%clk 00:05:23]} {[%emt 00:00:15]} Bf8 {[%clk 00:11:55]} {[%emt 00:00:54]}
21. Rg3 {[%clk 00:04:44]} {[%emt 00:00:43]} Kh7 {[%clk 00:09:55]} {[%emt
00:02:06]} 22. Qf3 {[%clk 00:04:08]} {[%emt 00:00:42]} Ng8 {[%clk 00:07:41]}
{[%emt 00:02:19]} 23. Ba3 {[%clk 00:02:49]} {[%emt 00:01:23]} g6 {[%clk
00:07:32]} {[%emt 00:00:14]} 24. Ne3 {[%clk 00:02:23]} {[%emt 00:00:32]} Be7
{[%clk 00:06:28]} {[%emt 00:01:09]} 25. Qe2 {[%clk 00:01:49]} {[%emt 00:00:38]}
Nf6 {[%clk 00:06:16]} {[%emt 00:00:16]} 26. Ng4 {[%clk 00:01:12]} {[%emt
00:00:41]} Nh5 {[%clk 00:06:04]} {[%emt 00:00:18]} 27. Rf3 {[%clk 00:00:52]}
{[%emt 00:00:25]} Nf4 {[%clk 00:05:32]} {[%emt 00:00:38]} 28. Qf1 {[%clk
00:00:27]} {[%emt 00:00:29]} Kg7 {[%clk 00:05:31]} {[%emt 00:00:06]} 29. g3
{[%clk 00:00:28]} {[%emt 00:00:04]} Nxh3+ {[%clk 00:04:45]} {[%emt 00:00:51]}
30. Qxh3 {[%clk 00:00:18]} {[%emt 00:00:15]} h5 {[%clk 00:04:49]} {[%emt
00:00:01]} 31. Qg2 {[%clk 00:00:12]} {[%emt 00:00:11]} Bxg4 {[%clk 00:04:52]}
{[%emt 00:00:02]} 32. Rd3 {[%clk 00:00:14]} {[%emt 00:00:04]} Be6 {[%clk
00:04:51]} {[%emt 00:00:05]} 33. f4 {[%clk 00:00:12]} {[%emt 00:00:07]} exf4
{[%clk 00:04:04]} {[%emt 00:00:52]} 34. gxf4 {[%clk 00:00:16]} {[%emt
00:00:02]} Bg4 {[%clk 00:04:06]} {[%emt 00:00:02]} 35. Rg3 {[%clk 00:00:12]}
{[%emt 00:00:09]} Bh4 {[%clk 00:03:59]} {[%emt 00:00:12]} 36. Ne2 {[%clk
00:00:08]} {[%emt 00:00:09]} Bxe2 {[%clk 00:03:36]} {[%emt 00:00:29]} 37. Rxe2
{[%clk 00:00:11]} {[%emt 00:00:02]} Bxg3 {[%clk 00:03:39]} {[%emt 00:00:01]} 38.
Qxg3 {[%clk 00:00:15]} {[%emt 00:00:02]} Kh7 {[%clk 00:03:18]} {[%emt
00:00:25]} 39. Bb2 {[%clk 00:00:15]} {[%emt 00:00:05]} Re7 {[%clk 00:03:08]}
{[%emt 00:00:15]} 40. Rh2 {[%clk 00:00:09]} {[%emt 00:00:12]} Rg8 {[%clk
00:02:54]} {[%emt 00:00:19]} 41. Qf3 {[%clk 00:00:08]} {[%emt 00:00:06]} Qa5
{[%emt 00:00:50]} 42. Bc3 {[%clk 00:00:10]} {[%emt 00:00:02]} Qc5+ {[%clk
00:02:11]} {[%emt 00:00:04]} 43. Kh1 {[%clk 00:00:12]} {[%emt 00:00:03]} Kh6
{[%clk 00:01:50]} {[%emt 00:00:25]} 44. b4 {[%clk 00:00:07]} {[%emt 00:00:10]}
Qc4 {[%clk 00:01:26]} {[%emt 00:00:29]} 45. Qg3 {[%clk 00:00:00]} {[%emt
00:00:07]} 0-1

[Event "MCR rapid mládeže 2023 U16"]
[Site "Harachov, Czech Republic"]
[Date "2023.09.09"]
[Round "4.23"]
[White "Vancakova, Veronika"]
[Black "Stepankova, Linda"]
[Result "1-0"]
[TimeControl "20min+5s/move"]
[WhiteElo "1433"]
[BlackElo "1124"]

1. d4 {[%clk 00:20:13]} {[%emt 00:00:02]} Nf6 {[%clk 00:20:09]} {[%emt
00:00:06]} 2. c4 {[%clk 00:20:17]} {[%emt 00:00:01]} d5 {[%clk 00:20:05]}
{[%emt 00:00:09]} 3. cxd5 {[%clk 00:20:19]} {[%emt 00:00:03]} Nxd5 {[%clk
00:20:05]} {[%emt 00:00:05]} 4. e4 {[%clk 00:20:21]} {[%emt 00:00:03]} Nb6
{[%clk 00:19:47]} {[%emt 00:00:23]} 5. Nc3 {[%clk 00:20:20]} {[%emt 00:00:06]}
Nc6 {[%clk 00:19:24]} {[%emt 00:00:29]} 6. Bb5 {[%clk 00:19:27]} {[%emt
00:00:57]} Bd7 {[%clk 00:18:51]} {[%emt 00:00:37]} 7. Be3 {[%clk 00:18:16]}
{[%emt 00:01:17]} e6 {[%clk 00:18:00]} {[%emt 00:00:56]} 8. Nge2 {[%clk
00:17:14]} {[%emt 00:01:07]} a6 {[%clk 00:16:44]} {[%emt 00:01:20]} 9. Bd3
{[%clk 00:16:33]} {[%emt 00:00:46]} Be7 {[%clk 00:14:43]} {[%emt 00:02:06]} 10.
a3 {[%clk 00:16:32]} {[%emt 00:00:07]} O-O {[%clk 00:14:14]} {[%emt 00:00:34]}
11. O-O {[%clk 00:15:55]} {[%emt 00:00:42]} Bg5 {[%clk 00:12:23]} {[%emt
00:01:56]} 12. f4 {[%clk 00:15:14]} {[%emt 00:00:46]} Bh6 {[%clk 00:11:48]}
{[%emt 00:00:40]} 13. b3 {[%clk 00:09:31]} {[%emt 00:05:49]} f6 {[%clk
00:05:18]} {[%emt 00:06:34]} 14. Bc2 {[%clk 00:07:47]} {[%emt 00:01:49]} e5
{[%clk 00:03:28]} {[%emt 00:01:54]} 15. Qd3 {[%clk 00:05:02]} {[%emt 00:02:51]}
exd4 {[%clk 00:02:40]} {[%emt 00:00:53]} 16. Nxd4 {[%clk 00:05:02]} {[%emt
00:00:05]} Nxd4 {[%clk 00:02:36]} {[%emt 00:00:09]} 17. Bxd4 {[%clk 00:05:06]}
{[%emt 00:00:01]} Bc6 {[%clk 00:01:23]} {[%emt 00:01:18]} 18. e5 {[%clk
00:04:01]} {[%emt 00:01:10]} fxe5 {[%clk 00:01:05]} {[%emt 00:00:23]} 19. Qxh7+
{[%clk 00:03:35]} {[%emt 00:00:30]} Kf7 {[%clk 00:00:59]} {[%emt 00:00:11]} 20.
fxe5+ {[%clk 00:03:08]} {[%emt 00:00:32]} Ke8 {[%clk 00:00:19]} {[%emt
00:00:46]} 21. Qg6+ {[%clk 00:02:43]} {[%emt 00:00:29]} Kd7 {[%clk 00:00:14]}
{[%emt 00:00:11]} 22. Bf5+ {[%clk 00:02:46]} {[%emt 00:00:02]} 1-0

[Event "MCR rapid mládeže 2023 U16"]
[Site "Harachov, Czech Republic"]
[Date "2023.09.09"]
[Round "4.24"]
[White "Nova, Anezka"]
[Black "Jakubse, Tamae Severina"]
[Result "1/2-1/2"]
[TimeControl "20min+5s/move"]
[WhiteElo "1382"]
[BlackElo "1223"]

1. e4 {[%clk 00:20:29]} e5 {[%clk 00:20:29]} {[%emt 00:00:01]} 2. Nf3 {[%clk
00:20:33]} {[%emt 00:00:02]} Nc6 {[%clk 00:20:32]} {[%emt 00:00:02]} 3. d4
{[%clk 00:20:36]} {[%emt 00:00:01]} exd4 {[%clk 00:20:35]} {[%emt 00:00:03]} 4.
Bc4 {[%clk 00:20:40]} {[%emt 00:00:01]} Nf6 {[%clk 00:20:19]} {[%emt 00:00:20]}
5. e5 {[%clk 00:20:41]} {[%emt 00:00:04]} Ne4 {[%clk 00:19:19]} {[%emt
00:01:06]} 6. Qe2 {[%clk 00:18:23]} {[%emt 00:02:22]} Nc5 {[%clk 00:18:40]}
{[%emt 00:00:44]} 7. Ng5 {[%clk 00:16:48]} {[%emt 00:01:41]} Ne6 {[%clk
00:17:14]} {[%emt 00:01:31]} 8. Nxe6 {[%clk 00:16:18]} {[%emt 00:00:35]} dxe6
{[%clk 00:16:55]} {[%emt 00:00:24]} 9. O-O {[%clk 00:16:04]} {[%emt 00:00:18]}
Bc5 {[%clk 00:15:41]} {[%emt 00:01:19]} 10. Rd1 {[%clk 00:15:51]} {[%emt
00:00:18]} Qh4 {[%clk 00:14:33]} {[%emt 00:01:10]} 11. Nd2 {[%clk 00:14:55]}
{[%emt 00:01:04]} h6 {[%clk 00:13:22]} {[%emt 00:01:17]} 12. Nf3 {[%clk
00:14:32]} {[%emt 00:00:27]} Qe7 {[%clk 00:12:47]} {[%emt 00:00:41]} 13. a3
{[%clk 00:12:47]} {[%emt 00:01:50]} a6 {[%clk 00:12:11]} {[%emt 00:00:41]} 14.
b4 {[%clk 00:12:36]} {[%emt 00:00:14]} Ba7 {[%clk 00:11:31]} {[%emt 00:00:45]}
15. Bb2 {[%clk 00:12:35]} {[%emt 00:00:07]} O-O {[%clk 00:10:48]} {[%emt
00:00:48]} 16. Nxd4 {[%clk 00:12:08]} {[%emt 00:00:32]} Nxd4 {[%clk 00:10:16]}
{[%emt 00:00:37]} 17. Bxd4 {[%clk 00:12:11]} {[%emt 00:00:01]} Bxd4 {[%clk
00:08:32]} {[%emt 00:01:49]} 18. Rxd4 {[%clk 00:12:15]} {[%emt 00:00:02]} b5
{[%clk 00:08:30]} {[%emt 00:00:07]} 19. Bb3 {[%clk 00:11:43]} {[%emt 00:00:36]}
Bb7 {[%clk 00:07:31]} {[%emt 00:01:04]} 20. Rad1 {[%clk 00:10:55]} {[%emt
00:00:51]} Rfd8 {[%clk 00:06:51]} {[%emt 00:00:48]} 21. Qd2 {[%clk 00:10:05]}
{[%emt 00:00:52]} Rxd4 {[%clk 00:05:51]} {[%emt 00:01:07]} 22. Qxd4 {[%clk
00:10:08]} {[%emt 00:00:02]} Qg5 {[%clk 00:04:51]} {[%emt 00:01:05]} 23. g3
{[%clk 00:09:02]} {[%emt 00:01:11]} Qh5 {[%clk 00:03:37]} {[%emt 00:01:19]} 24.
Qd3 {[%clk 00:07:10]} {[%emt 00:01:56]} Qxe5 {[%clk 00:02:51]} {[%emt
00:00:53]} 25. f3 {[%clk 00:05:55]} {[%emt 00:01:19]} Qb2 {[%clk 00:02:29]}
{[%emt 00:00:28]} 26. Kf2 {[%clk 00:01:37]} {[%emt 00:04:20]} Qxa3 {[%clk
00:01:48]} {[%emt 00:00:49]} 27. Qc3 {[%clk 00:01:24]} {[%emt 00:00:13]} a5
{[%clk 00:01:13]} {[%emt 00:00:44]} 28. Qxc7 {[%clk 00:01:20]} {[%emt
00:00:10]} Bd5 {[%clk 00:00:47]} {[%emt 00:00:30]} 29. Bxd5 {[%clk 00:01:12]}
{[%emt 00:00:14]} exd5 {[%clk 00:00:51]} {[%emt 00:00:01]} 30. bxa5 {[%clk
00:00:59]} {[%emt 00:00:18]} Qxa5 {[%clk 00:00:29]} {[%emt 00:00:26]} 31. Qxa5
{[%clk 00:00:55]} {[%emt 00:00:09]} Rxa5 {[%clk 00:00:34]} 32. Rxd5 {[%clk
00:00:57]} {[%emt 00:00:02]} Ra2 {[%clk 00:00:23]} {[%emt 00:00:17]} 33. Rc5
{[%clk 00:00:43]} {[%emt 00:00:19]} Kf8 {[%clk 00:00:23]} {[%emt 00:00:04]} 34.
Ke3 {[%clk 00:00:40]} {[%emt 00:00:08]} Ke7 {[%clk 00:00:24]} {[%emt 00:00:05]}
35. Kd3 {[%clk 00:00:33]} {[%emt 00:00:09]} Ra3+ {[%clk 00:00:19]} {[%emt
00:00:12]} 36. Ke4 {[%clk 00:00:29]} {[%emt 00:00:06]} Ra5 {[%clk 00:00:18]}
{[%emt 00:00:09]} 37. c3 {[%clk 00:00:18]} {[%emt 00:00:15]} Kd6 {[%clk
00:00:21]} {[%emt 00:00:03]} 38. Rd5+ {[%clk 00:00:19]} {[%emt 00:00:03]} Kc6
{[%clk 00:00:19]} {[%emt 00:00:09]} 39. Rf5 {[%clk 00:00:19]} {[%emt 00:00:04]}
f6 {[%clk 00:00:22]} {[%emt 00:00:02]} 40. Kd4 {[%clk 00:00:18]} {[%emt
00:00:07]} Ra1 {[%clk 00:00:24]} {[%emt 00:00:03]} 41. Rc5+ {[%clk 00:00:12]}
{[%emt 00:00:11]} Kb6 {[%clk 00:00:27]} {[%emt 00:00:02]} 42. Rd5 {[%clk
00:00:10]} {[%emt 00:00:05]} Rd1+ {[%clk 00:00:23]} {[%emt 00:00:10]} 43. Ke4
{[%clk 00:00:14]} {[%emt 00:00:01]} Rh1 {[%clk 00:00:24]} {[%emt 00:00:04]} 44.
Rd7 {[%clk 00:00:13]} {[%emt 00:00:06]} Rxh2 {[%clk 00:00:18]} {[%emt
00:00:12]} 45. Rxg7 {[%clk 00:00:17]} {[%emt 00:00:01]} Rc2 {[%clk 00:00:20]}
{[%emt 00:00:03]} 46. Kd3 {[%clk 00:00:19]} {[%emt 00:00:03]} 1/2-1/2

[Event "MCR rapid mládeže 2023 U16"]
[Site "Harachov, Czech Republic"]
[Date "2023.09.09"]
[Round "4.25"]
[White "Janouskova, Eliska"]
[Black "Kusova, Nikola"]
[Result "0-1"]
[TimeControl "20min+5s/move"]
[WhiteElo "1333"]
[BlackElo "1247"]

1. e4 {[%clk 00:20:07]} {[%emt 00:00:02]} e5 {[%clk 00:20:05]} {[%emt
00:00:05]} 2. Nf3 {[%clk 00:20:10]} {[%emt 00:00:02]} Nf6 {[%clk 00:20:08]}
{[%emt 00:00:02]} 3. Nxe5 {[%clk 00:20:12]} {[%emt 00:00:03]} d6 {[%clk
00:20:11]} {[%emt 00:00:02]} 4. Nf3 {[%clk 00:20:15]} {[%emt 00:00:02]} Nxe4
{[%clk 00:20:13]} {[%emt 00:00:03]} 5. Nc3 {[%clk 00:20:17]} {[%emt 00:00:02]}
Nf6 {[%clk 00:20:10]} {[%emt 00:00:09]} 6. d4 {[%clk 00:20:07]} {[%emt
00:00:16]} d5 {[%clk 00:20:12]} {[%emt 00:00:03]} 7. h3 {[%clk 00:19:21]}
{[%emt 00:00:50]} Nc6 {[%clk 00:19:49]} {[%emt 00:00:28]} 8. Bd3 {[%clk
00:18:28]} {[%emt 00:00:57]} Bb4 {[%clk 00:18:44]} {[%emt 00:01:10]} 9. O-O
{[%clk 00:16:05]} {[%emt 00:02:28]} O-O {[%clk 00:18:46]} {[%emt 00:00:04]} 10.
Bg5 {[%clk 00:15:43]} {[%emt 00:00:27]} Re8 {[%clk 00:16:20]} {[%emt 00:02:31]}
11. Qd2 {[%clk 00:13:50]} {[%emt 00:01:58]} Be6 {[%clk 00:13:21]} {[%emt
00:03:03]} 12. a3 {[%clk 00:12:43]} {[%emt 00:01:14]} Ba5 {[%clk 00:12:58]}
{[%emt 00:00:27]} 13. Rfe1 {[%clk 00:12:04]} {[%emt 00:00:44]} Bb6 {[%clk
00:11:47]} {[%emt 00:01:17]} 14. Bf1 {[%clk 00:10:20]} {[%emt 00:01:48]} h6
{[%clk 00:09:19]} {[%emt 00:02:33]} 15. Bh4 {[%clk 00:10:07]} {[%emt 00:00:18]}
Ba5 {[%clk 00:06:24]} {[%emt 00:03:00]} 16. b4 {[%clk 00:08:28]} {[%emt
00:01:44]} Bb6 {[%clk 00:06:22]} {[%emt 00:00:07]} 17. Na4 {[%clk 00:08:11]}
{[%emt 00:00:22]} g5 {[%clk 00:05:50]} {[%emt 00:00:37]} 18. Bg3 {[%clk
00:08:08]} {[%emt 00:00:08]} Ne4 {[%clk 00:05:34]} {[%emt 00:00:21]} 19. Qd1
{[%clk 00:07:14]} {[%emt 00:00:59]} g4 {[%clk 00:04:09]} {[%emt 00:01:30]} 20.
Nxb6 {[%clk 00:05:55]} {[%emt 00:01:24]} axb6 {[%clk 00:03:29]} {[%emt
00:00:46]} 21. hxg4 {[%clk 00:05:42]} {[%emt 00:00:18]} Bxg4 {[%clk 00:03:27]}
{[%emt 00:00:07]} 22. Be2 {[%clk 00:05:16]} {[%emt 00:00:30]} Nc3 {[%clk
00:01:53]} {[%emt 00:01:39]} 23. Qd2 {[%clk 00:04:51]} {[%emt 00:00:31]} Nxe2+
{[%clk 00:01:44]} {[%emt 00:00:14]} 24. Rxe2 {[%clk 00:04:50]} {[%emt
00:00:05]} Rxe2 {[%clk 00:01:47]} {[%emt 00:00:02]} 25. Qxe2 {[%clk 00:04:48]}
{[%emt 00:00:08]} Nxd4 {[%clk 00:01:42]} {[%emt 00:00:10]} 26. Qd3 {[%clk
00:04:27]} {[%emt 00:00:25]} Nxf3+ {[%clk 00:01:33]} {[%emt 00:00:14]} 27. gxf3
{[%clk 00:04:28]} {[%emt 00:00:04]} Qf6 {[%clk 00:00:54]} {[%emt 00:00:45]} 28.
Re1 {[%clk 00:03:38]} {[%emt 00:00:54]} Bxf3 {[%clk 00:00:55]} {[%emt
00:00:04]} 29. Bxc7 {[%clk 00:02:57]} {[%emt 00:00:47]} Rc8 {[%clk 00:00:32]}
{[%emt 00:00:28]} 30. Bg3 {[%clk 00:02:47]} {[%emt 00:00:15]} Be4 {[%clk
00:00:35]} {[%emt 00:00:02]} 31. Qe3 {[%clk 00:02:42]} {[%emt 00:00:10]} Rxc2
{[%clk 00:00:30]} {[%emt 00:00:10]} 32. Rf1 {[%clk 00:00:37]} {[%emt 00:02:09]}
Qf3 {[%clk 00:00:15]} {[%emt 00:00:20]} 33. Qxf3 {[%clk 00:00:20]} {[%emt
00:00:22]} Bxf3 {[%clk 00:00:18]} {[%emt 00:00:02]} 34. Ra1 {[%clk 00:00:14]}
{[%emt 00:00:11]} Kf8 {[%clk 00:00:18]} {[%emt 00:00:06]} 35. Bf4 {[%clk
00:00:12]} {[%emt 00:00:06]} h5 {[%clk 00:00:22]} {[%emt 00:00:02]} 36. Bg3
{[%clk 00:00:15]} {[%emt 00:00:01]} Ke7 {[%clk 00:00:18]} {[%emt 00:00:09]} 37.
Re1+ {[%clk 00:00:11]} {[%emt 00:00:09]} Re2 {[%clk 00:00:22]} {[%emt
00:00:01]} 38. Ra1 {[%clk 00:00:13]} {[%emt 00:00:03]} Kd7 {[%clk 00:00:23]}
{[%emt 00:00:04]} 39. Bh4 {[%clk 00:00:10]} {[%emt 00:00:08]} f5 {[%clk
00:00:26]} {[%emt 00:00:02]} 40. Bg3 {[%clk 00:00:12]} {[%emt 00:00:03]} Be4
{[%clk 00:00:24]} {[%emt 00:00:07]} 41. Bh4 {[%clk 00:00:11]} {[%emt 00:00:06]}
d4 {[%clk 00:00:21]} {[%emt 00:00:09]} 42. Bg5 {[%clk 00:00:11]} {[%emt
00:00:04]} d3 {[%clk 00:00:23]} {[%emt 00:00:03]} 43. Rd1 {[%clk 00:00:09]}
{[%emt 00:00:07]} Ke6 {[%clk 00:00:21]} {[%emt 00:00:07]} 44. Bf4 {[%clk
00:00:12]} {[%emt 00:00:03]} Kd5 {[%clk 00:00:23]} {[%emt 00:00:02]} 45. Be3
{[%clk 00:00:13]} {[%emt 00:00:04]} Kc4 {[%clk 00:00:27]} {[%emt 00:00:02]} 46.
Bxb6 {[%clk 00:00:11]} {[%emt 00:00:07]} d2 {[%clk 00:00:28]} {[%emt 00:00:03]}
47. Kh2 {[%clk 00:00:10]} {[%emt 00:00:06]} Bc2 {[%clk 00:00:23]} {[%emt
00:00:11]} 48. Rg1 {[%clk 00:00:08]} {[%emt 00:00:07]} d1=Q {[%clk 00:00:21]}
{[%emt 00:00:06]} 49. Rxd1 {[%clk 00:00:09]} {[%emt 00:00:03]} Bxd1 {[%clk
00:00:25]} {[%emt 00:00:02]} 50. Bc5 {[%clk 00:00:10]} {[%emt 00:00:04]} Ra2
{[%clk 00:00:22]} {[%emt 00:00:06]} 51. Be3 {[%clk 00:00:09]} {[%emt 00:00:07]}
Rxa3 {[%clk 00:00:23]} {[%emt 00:00:05]} 0-1

[Event "MCR rapid mládeže 2023 U16"]
[Site "Harachov, Czech Republic"]
[Date "2023.09.09"]
[Round "4.26"]
[White "Trcalkova, Ema"]
[Black "Kratka, Tereza"]
[Result "0-1"]
[TimeControl "20min+5s/move"]
[WhiteElo "1306"]
[BlackElo "1147"]

1. e4 {[%clk 00:20:05]} {[%emt 00:00:05]} c5 {[%clk 00:20:09]} {[%emt
00:00:02]} 2. Nf3 {[%clk 00:20:07]} {[%emt 00:00:03]} Nc6 {[%clk 00:20:12]}
{[%emt 00:00:02]} 3. d4 {[%clk 00:20:10]} {[%emt 00:00:01]} cxd4 {[%clk
00:20:16]} {[%emt 00:00:02]} 4. Nxd4 {[%clk 00:20:13]} {[%emt 00:00:02]} g6
{[%clk 00:20:19]} {[%emt 00:00:02]} 5. Nxc6 {[%clk 00:19:39]} {[%emt 00:00:38]}
bxc6 {[%clk 00:20:23]} {[%emt 00:00:02]} 6. Nc3 {[%clk 00:19:25]} {[%emt
00:00:19]} Bg7 {[%clk 00:20:26]} {[%emt 00:00:02]} 7. Bd3 {[%clk 00:18:32]}
{[%emt 00:00:58]} Nf6 {[%clk 00:20:25]} {[%emt 00:00:05]} 8. Bf4 {[%clk
00:17:49]} {[%emt 00:00:47]} d6 {[%clk 00:20:24]} {[%emt 00:00:07]} 9. O-O
{[%clk 00:17:17]} {[%emt 00:00:37]} O-O {[%clk 00:20:26]} {[%emt 00:00:03]} 10.
Qd2 {[%clk 00:17:07]} {[%emt 00:00:15]} Bb7 {[%clk 00:20:21]} {[%emt 00:00:12]}
11. Rfe1 {[%clk 00:16:09]} {[%emt 00:01:02]} Qd7 {[%clk 00:19:37]} {[%emt
00:00:50]} 12. Rad1 {[%clk 00:15:10]} {[%emt 00:01:04]} c5 {[%clk 00:19:24]}
{[%emt 00:00:18]} 13. f3 {[%clk 00:13:47]} {[%emt 00:01:27]} Nh5 {[%clk
00:17:05]} {[%emt 00:02:25]} 14. Bh6 {[%clk 00:13:21]} {[%emt 00:00:31]} Nf6
{[%clk 00:16:55]} {[%emt 00:00:14]} 15. Bc4 {[%clk 00:11:54]} {[%emt 00:01:33]}
Qc7 {[%clk 00:16:13]} {[%emt 00:00:46]} 16. Qg5 {[%clk 00:10:41]} {[%emt
00:01:18]} Qb6 {[%clk 00:15:20]} {[%emt 00:00:55]} 17. b3 {[%clk 00:10:13]}
{[%emt 00:00:37]} e6 {[%clk 00:14:17]} {[%emt 00:01:07]} 18. e5 {[%clk
00:07:43]} {[%emt 00:02:35]} dxe5 {[%clk 00:13:46]} {[%emt 00:00:36]} 19. Rxe5
{[%clk 00:07:46]} {[%emt 00:00:03]} Bc6 {[%clk 00:12:23]} {[%emt 00:01:27]} 20.
Bxg7 {[%clk 00:07:01]} {[%emt 00:00:50]} Kxg7 {[%clk 00:12:23]} {[%emt
00:00:06]} 21. Rd6 {[%clk 00:06:49]} {[%emt 00:00:17]} Rad8 {[%clk 00:11:50]}
{[%emt 00:00:37]} 22. Rd1 {[%clk 00:05:11]} {[%emt 00:01:43]} Rxd1+ {[%clk
00:11:24]} {[%emt 00:00:32]} 23. Nxd1 {[%clk 00:05:14]} {[%emt 00:00:02]} a6
{[%clk 00:11:19]} {[%emt 00:00:10]} 24. Rxc5 {[%clk 00:04:57]} {[%emt
00:00:22]} Nd7 {[%clk 00:11:06]} {[%emt 00:00:18]} 25. Qf4 {[%clk 00:03:28]}
{[%emt 00:02:12]} Nxc5 {[%clk 00:11:40]} {[%emt 00:00:31]} 26. Qd4+ {[%clk
00:02:54]} {[%emt 00:00:38]} Kg8 {[%clk 00:11:23]} {[%emt 00:00:22]} 27. Qh4
{[%clk 00:02:33]} {[%emt 00:00:27]} Nxb3+ {[%clk 00:11:02]} {[%emt 00:00:26]}
28. Kh1 {[%clk 00:01:43]} {[%emt 00:00:55]} Nd2 {[%clk 00:10:48]} {[%emt
00:00:18]} 29. Bd3 {[%clk 00:01:03]} {[%emt 00:00:46]} Qb1 {[%clk 00:10:24]}
{[%emt 00:00:29]} 30. Qe1 {[%clk 00:00:45]} {[%emt 00:00:23]} Nxf3 {[%clk
00:10:08]} {[%emt 00:00:21]} 31. Qe2 {[%clk 00:00:14]} {[%emt 00:00:36]} Nd4
{[%clk 00:09:36]} {[%emt 00:00:36]} 32. Qd2 {[%clk 00:00:15]} {[%emt 00:00:04]}
Rd8 {[%clk 00:09:08]} {[%emt 00:00:33]} 0-1